fUST/lending_fUST_20240805
["ID","MTS","AMOUNT","RATE_DAILY","PERIOD"]
[334209618,1722840639404,-16526.2519401,0.00029666,3]
[334209619,1722840639414,-150.0,0.00029702,2]
[334209620,1722840639424,-507.0,0.00029702,2]
[334209621,1722840639434,-1410.0,0.00029702,2]
[334209622,1722840639443,-263.0,0.0003,2]
[334209623,1722840639453,-150.112233,0.000305,8]
[334209624,1722840639464,-150.112233,0.000313,7]
[334209625,1722840639474,-1129.145956,0.00031963,120]
[334209626,1722840639484,-330.74731034,0.000322,2]
[334209627,1722840639493,-581.96,0.000323,7]
[334209628,1722840639502,-12176.2687964,0.000324,5]
[334209629,1722840639512,-16526.2519401,0.0003249,4]
[334209630,1722840639521,-57518.7872777,0.000325,60]
[334209631,1722840639531,-505.0,0.00032702,2]
[334209632,1722840639540,-150.112233,0.000333,6]
[334209633,1722840639549,-165.940847,0.00033598,2]
[334209634,1722840639559,-294.202512,0.00033626,2]
[334209635,1722840639568,-153.0,0.00034494,2]
[334209636,1722840639578,-590.7706366,0.00034494,2]
[334209637,1722840639587,-207.0130742,0.00034494,2]
[334209638,1722840639596,-207.0130742,0.00034494,2]
[334209639,1722840639606,-207.0130742,0.00034494,2]
[334209640,1722840639615,-207.0130742,0.00034494,2]
[334209641,1722840639625,-207.0130742,0.00034494,2]
[334209642,1722840639640,-413.0235216,0.00034494,2]
[334209643,1722840639649,-330.74731031,0.00034663,2]
[334209644,1722840639659,-150.112233,0.000352,8]
[334209645,1722840639668,-16526.2519401,0.0003539,4]
[334209646,1722840639678,-389.0,0.000354,14]
[334209647,1722840639688,-13994.3,0.000354,14]
[334209648,1722840639698,-33052.5038803,0.00035606,4]
[334209649,1722840639707,-150.112233,0.000363,5]
[334209650,1722840639718,-1129.145956,0.0003653,120]
[334209651,1722840639727,-581.96,0.000371,30]
[334209652,1722840639736,-330.74731031,0.00037126,2]
[334209653,1722840639745,-150.112233,0.000372,5]
[334209654,1722840639754,-6599.0,0.00037777,120]
[334209655,1722840639763,-153.9111627,0.00037852,45]
[334209656,1722840639772,-150.0,0.00039,30]
[334209657,1722840639783,-150.112233,0.000391,5]
[334209658,1722840639792,-330.74731031,0.00039589,2]
[334209659,1722840639802,-155.0,0.0003963,43]
[334209660,1722840639811,-16526.2519401,0.0003999,5]
[334209661,1722840639821,-200.2,0.0004,30]
[334209662,1722840639830,-60000.0,0.0004,2]
[334209663,1722840639840,-389.0,0.0004,14]
[334209664,1722840639849,-13994.3,0.0004,14]
[334209665,1722840639860,-40014.07985855,0.0004,30]
[334209666,1722840639870,-200.0,0.0004,2]
[334209667,1722840639883,-500.0,0.0004,7]
[334209668,1722840639893,-500.0,0.0004,7]
[334209676,1722840639975,-500.0,0.0004,7]
[334209678,1722840639986,-500.0,0.0004,7]
[334209680,1722840639998,-500.0,0.0004,7]
[334209682,1722840640009,-500.0,0.0004,7]
[334209683,1722840640020,-500.0,0.0004,7]
[334209685,1722840640031,-500.0,0.0004,7]
[334209687,1722840640041,-500.0,0.0004,7]
[334209689,1722840640051,-500.0,0.0004,7]
[334209690,1722840640061,-500.0,0.0004,7]
[334209692,1722840640072,-500.0,0.0004,7]
[334209694,1722840640082,-500.0,0.0004,7]
[334209696,1722840640093,-175.63959794,0.0004,7]
[334209698,1722840640104,-294.202512,0.00040086,2]
[334209700,1722840640115,-31067.6602119,0.000408,30]
[334209702,1722840640133,-7569.59721049,0.000408,30]
[334209705,1722840640146,-333.71611111,0.000408,30]
[334209828,1722840641487,-1598.38209644,0.00019002,2]
[334209830,1722840641505,-35012.4181319,0.00019167,2]
[334209832,1722840641519,-7001.77703298,0.00019177,2]
[334209835,1722840641536,-336.1881449,0.00019451,2]
[334209837,1722840641551,-205.20449904,0.00019477,2]
[334209839,1722840641566,-1598.38209643,0.00021077,2]
[334209842,1722840641583,-160.54991199,0.00026375,2]
[334209844,1722840641598,-308535.88625535,0.000408,30]
[334210066,1722840644107,-1047.78565267,0.000189,2]
[334210068,1722840644116,-154.76012181,0.00021906,2]
[334210070,1722840644125,-1598.38209643,0.00023151,2]
[334210072,1722840644140,-316.04604395,0.000408,30]
[334210074,1722840644152,-5068.8,0.000408,30]
[334210077,1722840644164,-254997.96396506,0.000408,30]
[334210387,1722840647207,-220.651884,0.00014247,2]
[334210388,1722840647217,-492.45155524,0.00019999,2]
[334210389,1722840647228,-220.651884,0.00020707,2]
[334210390,1722840647238,-1047.78565263,0.00023387,2]
[334210391,1722840647248,-1598.38209643,0.00025226,2]
[334210392,1722840647257,-154.76012181,0.00026575,2]
[334210393,1722840647267,-220.651884,0.00027167,2]
[334210394,1722840647277,-1598.38209643,0.000273,2]
[334210395,1722840647287,-220.651884,0.00033626,2]
[334210396,1722840647297,-220.651884,0.00040086,2]
[334210398,1722840647308,-249201.28433393,0.000408,30]
[334211686,1722841049728,1000.0,0.00027,120]
[334211687,1722841072328,1000.0,0.00025,60]
[334211695,1722841297620,591.8,0.00027,120]
[334211696,1722841331835,200.0,0.00027,120]
[334211726,1722841832078,-176.52151,0.00014247,2]
[334211728,1722841832089,-165.488913,0.00014247,2]
[334211730,1722841832098,-179.573046,0.0001845,2]
[334211732,1722841832114,-156.559611,0.0001845,2]
[334211733,1722841832124,-785.83923949,0.000189,2]
[334211736,1722841832134,-24356.85869283,0.00018989,2]
[334211738,1722841832146,-3338.96875994,0.00018989,2]
[334211740,1722841832157,-1589.98,0.00018989,2]
[334211839,1722841838233,-13055.90645859,0.00018989,2]
[334211841,1722841838244,-1000.0,0.00019,19]
[334211843,1722841838254,-150.112233,0.00019,2]
[334211845,1722841838263,-24900.0,0.00019033,2]
[334211847,1722841838273,-250.0,0.00019041,2]
[334211849,1722841838284,-21904.53468543,0.00019046,2]
[334211851,1722841838293,-1643.15842058,0.00019139,7]
[334211853,1722841838304,-1162.86940617,0.00019139,2]
[334211855,1722841838313,-1715.68394884,0.00019155,2]
[334211857,1722841838322,-1763.49757797,0.00019155,2]
[334211858,1722841838333,-2278.204521,0.00019155,3]
[334211860,1722841838342,-277.18370616,0.00019155,2]
[334211862,1722841838352,-3087.63872233,0.00019155,2]
[334211864,1722841838365,-17319.22432927,0.00019167,2]
[334211866,1722841838377,-1382.92970052,0.00019167,2]
[334211868,1722841838386,-1991.65402436,0.00019177,2]
[334211870,1722841838396,-1500.0,0.00019177,2]
[334211872,1722841838405,-7775.14481469,0.00019177,2]
[334211874,1722841838414,-165.940853,0.00019178,2]
[334211876,1722841838424,-11702.1425414,0.00019246,2]
[334211878,1722841838433,-2124.51614001,0.00019256,2]
[334211880,1722841838443,-9642.56191171,0.00019256,2]
[334211882,1722841838453,-20759.5327798,0.00019256,2]
[334211884,1722841838462,-459.69835721,0.00019256,4]
[334211886,1722841838471,-200.728217,0.00019329,2]
[334211888,1722841838482,-500.0,0.0001945,2]
[334211889,1722841838491,-406.68119017,0.0001945,2]
[334211890,1722841838500,-500.0,0.0001945,2]
[334211891,1722841838509,-500.0,0.0001945,2]
[334211892,1722841838518,-500.0,0.0001945,2]
[334211893,1722841838527,-500.0,0.0001945,2]
[334211894,1722841838537,-500.0,0.0001945,2]
[334211895,1722841838547,-1610.68802731,0.00019451,2]
[334211896,1722841838556,-240.80307792,0.00019451,2]
[334211897,1722841838565,-154.8978834,0.00019451,2]
[334211898,1722841838574,-155.76561412,0.00019451,2]
[334211899,1722841838584,-165.53506923,0.00019451,2]
[334211900,1722841838593,-349.95344771,0.00019451,2]
[334211901,1722841838603,-11702.1425414,0.00019468,2]
[334211902,1722841838616,-808.0041696,0.00019477,2]
[334211903,1722841838626,-35012.4181319,0.00019477,2]
[334211904,1722841838636,-439.02477229,0.00019477,2]
[334211905,1722841838645,-156.73199194,0.00019477,2]
[334211906,1722841838654,-11702.1425414,0.00019537,2]
[334211907,1722841838663,-2139.16821494,0.00019547,2]
[334211908,1722841838673,-1794.59755427,0.00019547,2]
[334211909,1722841838682,-155.01241559,0.00019547,2]
[334211910,1722841838691,-452.55467294,0.00019547,2]
[334211911,1722841838701,-319.67641931,0.00019899,2]
[334211912,1722841838711,-426.9441554,0.00019999,2]
[334211913,1722841838720,-742.61257937,0.00019999,2]
[334211914,1722841838729,-156.35315554,0.0002,2]
[334211915,1722841838738,-1632.70804043,0.0002,2]
[334211916,1722841838748,-1363.34392567,0.0002,2]
[334211917,1722841838757,-1061.01164336,0.0002,2]
[334211918,1722841838766,-154.80649189,0.0002,2]
[334211919,1722841838776,-294.09032939,0.0002,2]
[334211920,1722841838785,-209.20156569,0.0002028,2]
[334211921,1722841838795,-245.16608057,0.0002028,2]
[334211922,1722841838804,-1438.29474334,0.0002028,2]
[334211923,1722841838813,-165.488913,0.00020707,2]
[334211924,1722841838823,-11702.1425414,0.00020991,3]
[334211925,1722841838833,-1438.29474334,0.00020999,2]
[334211926,1722841838842,-3000.0,0.00021,2]
[334211927,1722841838851,-1000.0,0.00021,21]
[334211928,1722841838863,-3000.0,0.0002101,2]
[334211929,1722841838874,-3000.0,0.0002102,2]
[334211930,1722841838883,-3000.0,0.0002103,2]
[334211931,1722841838893,-3000.0,0.0002104,2]
[334211932,1722841838902,-209.19463023,0.00021048,2]
[334211933,1722841838912,-3000.0,0.0002105,2]
[334211934,1722841838921,-3000.0,0.0002106,2]
[334211935,1722841838931,-3000.0,0.0002107,2]
[334211936,1722841838940,-11702.1425414,0.0002107,3]
[334211937,1722841838950,-4750.423378,0.0002108,2]
[334211938,1722841838959,-12176.2687964,0.00021499,3]
[334211939,1722841838968,-150.112233,0.000215,4]
[334211940,1722841838977,-309.50481162,0.00021591,2]
[334211941,1722841838986,-154.86419481,0.00021591,2]
[334211942,1722841838995,-276.70896116,0.00021599,2]
[334211943,1722841839005,-1091.57771247,0.00021602,2]
[334211944,1722841839014,-224.61143175,0.00021609,2]
[334211945,1722841839023,-494.194417,0.00021632,2]
[334211946,1722841839033,-163.04029587,0.00021805,2]
[334211947,1722841839042,-1000.0,0.00023,23]
[334211948,1722841839052,-785.83923947,0.00023309,2]
[334211949,1722841839061,-151.0,0.00023313,3]
[334211950,1722841839072,-150.112233,0.000235,5]
[334211951,1722841839081,-150.112233,0.000236,2]
[334211952,1722841839093,-319.67641928,0.00023803,2]
[334211953,1722841839104,-200.0,0.00024658,15]
[334211954,1722841839117,-155.95,0.000247,31]
[334211955,1722841839128,-155.95,0.000247,31]
[334211956,1722841839137,-155.95,0.000247,31]
[334211957,1722841839147,-155.95,0.000247,31]
[334211958,1722841839159,-155.95,0.000247,31]
[334211959,1722841839168,-154.77557542,0.00025,2]
[334211960,1722841839178,-189.52144051,0.00025,2]
[334211961,1722841839187,-1000.0,0.00025,25]
[334211962,1722841839197,-155.95,0.000252,31]
[334211963,1722841839206,-155.95,0.000252,31]
[334211964,1722841839216,-155.95,0.000252,31]
[334211965,1722841839226,-155.95,0.000252,31]
[334211966,1722841839235,-150.112233,0.000254,9]
[334211967,1722841839244,-151.0,0.00025436,5]
[334211968,1722841839254,-155.95,0.000257,31]
[334211969,1722841839263,-155.95,0.000257,31]
[334211970,1722841839273,-155.95,0.000257,31]
[334211971,1722841839284,-155.95,0.000257,31]
[334211972,1722841839294,-160.54991199,0.00026053,2]
[334211973,1722841839305,-881.47696693,0.00026056,2]
[334211974,1722841839315,-772.25823972,0.00026079,2]
[334211975,1722841839324,-155.95,0.000261,31]
[334211976,1722841839334,-155.95,0.000261,31]
[334211977,1722841839343,-155.95,0.000261,31]
[334211978,1722841839352,-155.95,0.000261,31]
[334211979,1722841839366,-11702.1425414,0.00026152,3]
[334211980,1722841839378,-3160.45770161,0.00026172,60]
[334211981,1722841839388,-216.91710387,0.00026172,2]
[334211982,1722841839397,-155.95,0.000266,31]
[334211983,1722841839484,-155.95,0.000266,31]
[334211984,1722841839494,-155.95,0.000266,31]
[334211985,1722841839503,-155.95,0.000266,31]
[334211986,1722841839511,-245.19657933,0.00026679,2]
[334211987,1722841839521,-11702.1425414,0.0002699,3]
[334211988,1722841839530,-37626.03860216,0.00027,5]
[334211989,1722841839540,-4181.02325297,0.00027,2]
[334211990,1722841839549,-1669.01055043,0.00027,2]
[334211991,1722841839559,-158.48348286,0.00027,2]
[334211992,1722841839569,-10418.41067259,0.00027,14]
[334211993,1722841839579,-1625.81763535,0.00027,2]
[334211994,1722841839588,-912.4763458,0.00027,2]
[334211995,1722841839598,-2595.14468135,0.00027,2]
[334211996,1722841839611,-13234.84134782,0.00027,2]
[334211997,1722841839620,-154.82195475,0.00027,15]
[334211998,1722841839630,-1000.0,0.00027,27]
[334211999,1722841839639,-405.21,0.00027,14]
[334212000,1722841839649,-12722.30849391,0.00027,14]
[334212012,1722841840256,-2162.60520141,0.00019177,2]
[334212013,1722841840266,-7001.77703298,0.00019256,2]
[334212014,1722841840276,-336.1881449,0.00019256,2]
[334212015,1722841840287,-183.12142007,0.00019451,2]
[334212016,1722841840297,-168.35150609,0.00027,14]
[334212017,1722841840308,-165.488913,0.00027167,2]
[334212018,1722841840318,-620.45949967,0.00027348,2]
[334212019,1722841840327,-1129.145956,0.00027397,120]
[334212020,1722841840338,-150.112233,0.000274,10]
[334212021,1722841840347,-151.0,0.0002756,6]
[334212022,1722841840363,-319.67641928,0.00027708,2]
[334212023,1722841840374,-785.83923947,0.00027718,2]
[334212024,1722841840385,-150.112233,0.000282,7]
[334212025,1722841840395,-1004.277317,0.000289,2]
[334212026,1722841840405,-1000.0,0.00029,29]
[334212027,1722841840414,-150.112233,0.000293,9]
[334212028,1722841840424,-1000.0,0.000294,2]
[334212029,1722841840433,-3200.0,0.00029644,2]
[334212030,1722841840443,-276.718,0.00029644,2]
[334212032,1722841840453,-151.0,0.00029683,15]
[334212034,1722841840462,-211.702,0.00029702,2]
[334212036,1722841840472,-150.215,0.00029702,2]
[334212038,1722841840482,-150.123,0.00029702,2]
[334212040,1722841840491,-150.0,0.00029702,2]
[334212042,1722841840500,-150.0,0.00029702,2]
[334212044,1722841840509,-507.0,0.00029702,2]
[334212046,1722841840520,-1410.0,0.00029702,2]
[334212048,1722841840530,-500.0,0.0003,120]
[334212050,1722841840539,-263.0,0.0003,2]
[334212052,1722841840549,-1000.0,0.00031,31]
[334212054,1722841840558,-150.112233,0.000313,8]
[334212056,1722841840568,-405.21,0.000313,14]
[334212058,1722841840578,-12890.66,0.000313,14]
[334212060,1722841840587,-319.67641928,0.00031612,2]
[334212062,1722841840597,-151.0,0.00031806,15]
[334212064,1722841840610,-1129.145956,0.00031963,120]
[334212066,1722841840622,-500.0,0.00032,120]
[334212068,1722841840632,-785.83923947,0.00032127,2]
[334212070,1722841840641,-505.0,0.00032702,2]
[334212072,1722841840652,-398.97655988,0.00032727,4]
[334212074,1722841840662,-150.112233,0.000328,5]
[334212076,1722841840672,-1000.0,0.00033,33]
[334212078,1722841840683,-150.112233,0.000333,10]
[334212080,1722841840692,-165.488913,0.00033626,2]
[334212082,1722841840701,-151.0,0.0003393,15]
[334212084,1722841840710,-500.0,0.00034,120]
[334212086,1722841840720,-206.2208826,0.00034699,2]
[334212088,1722841840729,-294.2886399,0.00034702,2]
[334212090,1722841840739,-153.0,0.00034702,2]
[334212092,1722841840748,-207.0130742,0.00034702,2]
[334212094,1722841840758,-153.0,0.00034702,2]
[334212096,1722841840767,-207.0130742,0.00034702,2]
[334212098,1722841840777,-294.2886399,0.00034702,2]
[334212100,1722841840787,-153.0,0.00034702,2]
[334212102,1722841840796,-294.2886399,0.00034702,2]
[334212104,1722841840805,-294.2886399,0.00034702,2]
[334212106,1722841840814,-153.0,0.00034702,2]
[334212108,1722841840824,-153.0,0.00034702,2]
[334212110,1722841840833,-294.2886399,0.00034702,2]
[334212112,1722841840842,-294.2886399,0.00034702,2]
[334212114,1722841840851,-294.2886399,0.00034702,2]
[334212116,1722841840860,-294.2886399,0.00034702,2]
[334212118,1722841840869,-294.2886399,0.00034702,2]
[334212120,1722841840878,-160.0,0.00034863,3]
[334212122,1722841840887,-1000.0,0.00035,35]
[334212124,1722841840897,-405.21,0.00035,14]
[334212134,1722841840979,-12890.66,0.00035,14]
[334212136,1722841840989,-150.112233,0.000352,7]
[334212138,1722841840999,-319.67641928,0.00035516,2]
[334212140,1722841841008,-294.2886399,0.00035521,2]
[334212142,1722841841017,-294.2886399,0.00035521,2]
[334212144,1722841841027,-294.2886399,0.00035521,2]
[334212146,1722841841036,-240.7062103,0.00035521,2]
[334212148,1722841841045,-413.0235216,0.00035521,2]
[334212150,1722841841055,-590.7706366,0.00035521,2]
[334212152,1722841841064,-153.0,0.00035521,2]
[334212154,1722841841073,-207.0130742,0.00035521,2]
[334212156,1722841841083,-207.0130742,0.00035521,2]
[334212158,1722841841092,-207.0130742,0.00035521,2]
[334212160,1722841841101,-207.0130742,0.00035521,2]
[334212162,1722841841122,-207.0130742,0.00035521,2]
[334212164,1722841841131,-294.2886399,0.00035524,2]
[334212166,1722841841141,-11702.1425414,0.00035586,4]
[334212168,1722841841150,-11702.1425414,0.00035606,4]
[334212170,1722841841160,-11702.1425414,0.00035606,4]
[334212172,1722841841169,-581.96,0.000357,30]
[334212174,1722841841179,-500.0,0.00036,120]
[334212176,1722841841189,-330.74731034,0.00036025,2]
[334212178,1722841841199,-151.0,0.00036053,15]
[334212180,1722841841208,-160.0,0.00036125,4]
[334212182,1722841841218,-1129.145956,0.0003653,120]
[334212184,1722841841227,-785.83923947,0.00036536,2]
[334212186,1722841841237,-1000.0,0.00037,37]
[334212188,1722841841247,-150.112233,0.000372,10]
[334212190,1722841841256,-160.0,0.00037386,5]
[334212192,1722841841266,-150.112233,0.000374,9]
[334212194,1722841841275,-405.21,0.000376,14]
[334212196,1722841841288,-7134.19979891,0.000376,14]
[334212198,1722841841303,-5756.46020109,0.000376,14]
[334212200,1722841841312,-153.9111627,0.00037852,45]
[334212202,1722841841322,-330.74731031,0.00037978,2]
[334212204,1722841841333,-11702.1425414,0.0003798,4]
[334212206,1722841841342,-35106.4276243,0.0003799,4]
[334212208,1722841841352,-500.0,0.00038,120]
[334212210,1722841841365,-138144.9972277,0.00038,30]
[334212212,1722841841374,-151.0,0.00038176,15]
[334212214,1722841841384,-160.0,0.00038647,6]
[334212216,1722841841393,-1000.0,0.00039,39]
[334212218,1722841841403,-581.96,0.00039,30]
[334212220,1722841841413,-150.112233,0.000391,5]
[334212222,1722841841422,-150.0,0.00039762,2]
[334212224,1722841841432,-160.0,0.00039909,7]
[334212226,1722841841442,-330.74731031,0.0003993,2]
[334212228,1722841841451,-11702.1425414,0.0003998,5]
[334212230,1722841841467,-11702.1425414,0.0003999,5]
[334212231,1722841841476,-40014.07985955,0.0004,30]
[334212232,1722841841485,-500.0,0.0004,120]
[334212233,1722841841495,-955.0,0.0004,2]
[334212234,1722841841504,-200.0,0.0004,2]
[334212235,1722841841513,-500.0,0.0004,7]
[334212236,1722841841523,-500.0,0.0004,7]
[334212237,1722841841532,-500.0,0.0004,7]
[334212238,1722841841541,-500.0,0.0004,7]
[334212239,1722841841551,-500.0,0.0004,7]
[334212240,1722841841560,-500.0,0.0004,7]
[334212241,1722841841569,-500.0,0.0004,7]
[334212242,1722841841579,-500.0,0.0004,7]
[334212243,1722841841589,-500.0,0.0004,7]
[334212244,1722841841600,-500.0,0.0004,7]
[334212245,1722841841612,-500.0,0.0004,7]
[334212246,1722841841622,-500.0,0.0004,7]
[334212247,1722841841632,-500.0,0.0004,7]
[334212248,1722841841641,-175.63959794,0.0004,7]
[334212249,1722841841650,-165.488913,0.00040086,2]
[334212250,1722841841659,-151.0,0.000403,15]
[334212251,1722841841669,-151.0,0.000403,15]
[334212252,1722841841678,-200.0,0.00040472,2]
[334212253,1722841841687,-11702.1425414,0.0004079,5]
[334212254,1722841841697,-325.52924746,0.000408,3]
[334212255,1722841841706,-154.79277577,0.000408,4]
[334212256,1722841841716,-68505.42263936,0.000408,30]
[334212258,1722841841728,-1065.52101844,0.000408,30]
[334212817,1722841847247,-2124.51614001,0.00019177,2]
[334212819,1722841847257,-1610.68802731,0.00019256,2]
[334212821,1722841847267,-315.94859767,0.00019477,2]
[334212823,1722841847279,-1478.6489566,0.00019477,2]
[334212825,1722841847290,-2139.16821494,0.00019477,2]
[334212827,1722841847300,-157.81947129,0.00021916,2]
[334212829,1722841847310,-881.47696693,0.00026049,2]
[334212831,1722841847319,-294.2886399,0.00034702,2]
[334212833,1722841847329,-210.40027131,0.000408,30]
[334212944,1722842157263,10000.0,0.00025,60]
[334212945,1722842163370,10000.0,0.00025,60]
[334212946,1722842184528,10000.0,0.00025,60]
[334212947,1722842200026,8768.85,0.00025,60]
[334212948,1722842352988,150.5,0.00021632,120]
[334212949,1722842353466,150.5,0.00021622,120]
[334212950,1722842353951,170.21,0.00021612,120]
[334212951,1722842376970,10000.0,0.00025,60]
[334212952,1722842388642,6242.94,0.00025,60]
[334212999,1722842915055,48359.7287152,0.00025,60]
[334213000,1722842929261,1313.09368808,0.00025,120]
[334213002,1722842969165,-436.0178,9.509e-05,2]
[334213003,1722842969188,-4839.07759787,9.8e-05,2]
[334213004,1722843020109,200.0,0.000249,120]
[334213058,1722843034071,-158.48348286,9.8e-05,2]
[334213060,1722843034081,-4515.15311675,9.8e-05,2]
[334213063,1722843034091,-788.1851205,0.00011626,2]
[334213065,1722843034101,-194.597587,0.00012007,2]
[334213067,1722843034111,-300.0,0.00012025,2]
[334213069,1722843034121,-11920.591143,0.00012026,2]
[334213071,1722843034131,-194.597587,0.0001204,2]
[334213072,1722843034141,-194.597587,0.00012073,2]
[334213074,1722843034151,-194.597587,0.00012106,2]
[334213076,1722843034160,-194.597587,0.00012139,2]
[334213078,1722843034170,-194.597587,0.00012172,2]
[334213080,1722843034180,-194.597587,0.00012205,2]
[334213081,1722843034190,-194.597587,0.00012238,2]
[334213082,1722843034200,-194.597587,0.00012271,2]
[334213083,1722843034210,-194.597587,0.00012304,2]
[334213084,1722843034219,-194.597587,0.00012337,2]
[334213085,1722843034229,-194.597587,0.0001237,2]
[334213086,1722843034238,-194.597587,0.00012402,2]
[334213087,1722843034248,-194.597587,0.00012435,2]
[334213088,1722843034258,-194.597587,0.00012468,2]
[334213089,1722843034268,-194.597587,0.00012501,2]
[334213090,1722843034277,-194.597587,0.00012534,2]
[334213091,1722843034287,-194.597587,0.00012567,2]
[334213092,1722843034299,-194.597587,0.000126,2]
[334213093,1722843034309,-194.597587,0.00012633,2]
[334213094,1722843034319,-8722.2767903,0.00013,2]
[334213095,1722843034329,-420.0,0.00013227,2]
[334213096,1722843034339,-1669.90838393,0.00013599,2]
[334213097,1722843034348,-3000.0,0.00013699,2]
[334213098,1722843034359,-172.843978,0.00014247,2]
[334213099,1722843034369,-218.0361,0.00014247,2]
[334213100,1722843034379,-587.0,0.0001455,2]
[334213101,1722843034389,-452.55467294,0.00015,2]
[334213102,1722843034400,-4772.79286968,0.000155,2]
[334213103,1722843034410,-24900.0,0.00015898,2]
[334213104,1722843034420,-423.535423,0.00015971,2]
[334213105,1722843034430,-150.112233,0.00016,2]
[334213106,1722843034439,-823.0,0.00016005,2]
[334213107,1722843034449,-309.6623082,0.00016794,2]
[334213108,1722843034460,-75119.51301886,0.00017,2]
[334213109,1722843034470,-1152.0,0.00017606,2]
[334213110,1722843034480,-309.59758575,0.00018,2]
[334213111,1722843034490,-205.52953509,0.00018,2]
[334213112,1722843034500,-1991.65402436,0.00018346,2]
[334213113,1722843034510,-1500.0,0.00018356,2]
[334213114,1722843034519,-2772.40415155,0.00018447,2]
[334213115,1722843034532,-123.28656667,0.00018447,2]
[334213116,1722843034542,-156.55961,0.0001845,2]
[334213117,1722843034554,-157.673059,0.0001845,2]
[334213119,1722843034564,-290.490241,0.0001845,2]
[334213120,1722843034574,-321.087861,0.0001845,2]
[334213121,1722843034584,-1299.642987,0.0001845,2]
[334213122,1722843034593,-1284.351448,0.0001845,2]
[334213123,1722843034603,-172.102529,0.0001845,2]
[334213124,1722843034613,-179.573048,0.0001845,2]
[334213125,1722843034622,-156.559611,0.0001845,2]
[334213126,1722843034632,-2162.60520141,0.00018489,2]
[334213127,1722843034641,-1669.90838389,0.00018625,2]
[334213128,1722843034652,-375.86,0.00018648,3]
[334213129,1722843034662,-1939.58284202,0.00018658,2]
[334213130,1722843034671,-1043.4993394,0.00018662,2]
[334213132,1722843034681,-1794.59755427,0.00018679,2]
[334213134,1722843034690,-290.490241,0.00018681,2]
[334213140,1722843034786,-321.087861,0.00018681,2]
[334213141,1722843034797,-1299.642987,0.00018681,2]
[334213142,1722843034807,-1284.351448,0.00018681,2]
[334213143,1722843034816,-172.102529,0.00018758,2]
[334213144,1722843034826,-157.673059,0.00018911,2]
[334213145,1722843034835,-290.490241,0.00018911,2]
[334213146,1722843034845,-321.087861,0.00018911,2]
[334213147,1722843034855,-93.05429134,0.00018911,2]
[334213148,1722843034869,-1206.58869566,0.00018911,2]
[334213149,1722843034879,-1284.351448,0.00018911,2]
[334213150,1722843034889,-250.0,0.00019041,2]
[334213151,1722843034899,-172.102529,0.00019065,2]
[334213152,1722843034909,-7001.77703298,0.00019102,2]
[334213153,1722843034919,-111.13134743,0.00019139,2]
[334213181,1722843039371,-157.2737572,0.00013698,2]
[334213182,1722843039381,-500.0,0.00013698,2]
[334213183,1722843039390,-270.26495792,0.00013698,2]
[334213184,1722843039401,-500.0,0.00013698,2]
[334213185,1722843039411,-251.62794152,0.00013698,2]
[334213186,1722843039420,-500.0,0.00013698,2]
[334213187,1722843039430,-262.96385452,0.00013698,2]
[334213188,1722843039442,-500.0,0.00013698,2]
[334213189,1722843039453,-500.0,0.00013698,2]
[334213190,1722843039463,-500.0,0.00013698,2]
[334213191,1722843039473,-500.0,0.00013698,2]
[334213192,1722843039483,-500.0,0.00013698,2]
[334213193,1722843039492,-593.50695027,0.00013698,2]
[334213194,1722843039501,-366.136038,0.00013698,2]
[334213195,1722843039511,-500.0,0.00013698,2]
[334213196,1722843039521,-500.0,0.00013699,2]